bitfinex-derivatives/quotes_BTCF0:USTF0_20251009
["timestamp","ask_amount","ask_price","bid_price","bid_amount"]
[1759983005579,0.1171039,122040.0,122030.0,3.2288066]
[1759983005784,0.1171039,122040.0,122030.0,3.46814771]
[1759983006089,0.1171039,122040.0,122030.0,3.47214771]
[1759983006486,0.1171039,122040.0,122030.0,3.47514771]
[1759983006790,0.1171039,122040.0,122030.0,3.2358066]
[1759983006990,0.1171039,122040.0,122030.0,3.47514771]
[1759983007289,0.18100474,122040.0,122030.0,3.47514771]
[1759983007988,0.18100474,122040.0,122030.0,3.47518771]
[1759983008387,0.1171039,122040.0,122030.0,3.47518771]
[1759983011286,0.12593191,122040.0,122030.0,3.47518771]
[1759983011491,0.1171039,122040.0,122030.0,3.47518771]
[1759983011792,0.1824268,122040.0,122030.0,3.47518771]
[1759983014895,0.1824268,122040.0,122030.0,2.73542771]
[1759983015493,0.1824268,122040.0,122030.0,3.47522771]
[1759983017495,0.20099227,122040.0,122030.0,3.47522771]
[1759983017698,0.03195547,122040.0,122030.0,2.97476882]
[1759983017886,0.01339,122040.0,122030.0,3.37476882]
[1759983018194,0.01339,122040.0,122030.0,4.11456882]
[1759983024597,0.01339,122040.0,122030.0,3.37476882]
[1759983024799,0.01339,122040.0,122030.0,4.11456882]
[1759983025699,0.01339,122040.0,122030.0,4.11480882]
[1759983028901,0.01339,122040.0,122030.0,3.37500882]
[1759983029095,0.01339,122040.0,122030.0,4.11476882]
[1759983029290,0.01339,122040.0,122030.0,3.2360866]
[1759983029490,0.33465501,122040.0,122030.0,2.37486771]
[1759983029695,0.35644501,122040.0,122030.0,3.11462771]
[1759983030490,0.35644501,122040.0,122030.0,0.32826771]
[1759983030695,0.35644501,122040.0,122030.0,3.11462771]
[1759983032595,0.30420899,122080.0,122030.0,3.11462771]
[1759983032596,0.01339,122090.0,122040.0,0.0819239]
[1759983032795,0.01861444,122090.0,122080.0,0.79992043]
[1759983032995,0.0138,122100.0,122090.0,0.0818903]
[1759983033195,0.0138,122100.0,122090.0,0.79991363]
[1759983033900,0.0138,122100.0,122090.0,1.16071363]
[1759983034102,0.0138,122100.0,122090.0,0.92137252]
[1759983034494,0.0138,122100.0,122090.0,3.71017252]
[1759983034694,0.0198,122100.0,122090.0,3.71017252]
[1759983035099,0.0228,122100.0,122090.0,3.71017252]
[1759983035802,0.0228,122100.0,122090.0,0.92137252]
[1759983036003,0.0228,122100.0,122090.0,3.70997252]
[1759983036798,0.0228,122100.0,122090.0,0.92137252]
[1759983036997,0.04461,122100.0,122090.0,3.70977252]
[1759983038898,0.04461,122100.0,122090.0,2.96769252]
[1759983039101,0.04461,122100.0,122090.0,3.2310503]
[1759983039301,0.04461,122100.0,122090.0,3.70973252]
[1759983040907,0.04461,122100.0,122090.0,3.77441299]
[1759983041206,0.04461,122100.0,122090.0,3.77413299]
[1759983043105,0.0228,122100.0,122090.0,3.77397299]
[1759983045807,0.0228,122100.0,122090.0,3.29529077]
[1759983046012,0.0228,122100.0,122090.0,3.61422501]
[1759983047108,0.8883736,122100.0,122090.0,0.06468047]
[1759983047313,0.8883736,122100.0,122090.0,0.7418]
[1759983047509,0.8883736,122100.0,122090.0,1.14262454]
[1759983048910,0.90665545,122100.0,122090.0,1.14262454]
[1759983049410,0.90665545,122100.0,122090.0,1.20959094]
[1759983051113,0.90665545,122100.0,122090.0,1.20955094]
[1759983051308,0.90665545,122100.0,122090.0,0.46779094]
[1759983051612,0.90665545,122100.0,122090.0,1.20955094]
[1759983052914,0.90665545,122100.0,122090.0,0.46779094]
[1759983053114,0.90665545,122100.0,122090.0,1.20951094]
[1759983053813,0.90665545,122100.0,122090.0,0.8236103]
[1759983055610,0.90665545,122100.0,122090.0,0.0818903]
[1759983055814,0.1180303,122090.0,122080.0,0.14694304]
[1759983056017,0.095147,122080.0,122070.0,2.44671324]
[1759983056215,0.47422885,122080.0,122070.0,2.8694238]
[1759983057914,0.47422885,122080.0,122070.0,3.18835804]
[1759983059017,0.47622885,122080.0,122070.0,3.18835804]
[1759983059417,0.48477619,122080.0,122070.0,3.18835804]
[1759983061619,0.48477619,122080.0,122070.0,2.8694238]
[1759983065423,0.48477619,122080.0,122070.0,2.1277838]
[1759983065724,0.48477619,122080.0,122070.0,2.8693038]
[1759983066724,0.02028185,122080.0,122070.0,3.16565228]
[1759983066924,0.3746,122100.0,122090.0,0.0818903]
[1759983067223,0.3746,122100.0,122090.0,0.40082454]
[1759983067422,0.3746,122100.0,122090.0,3.19150454]
[1759983068424,0.3979,122100.0,122090.0,0.40082454]
[1759983068723,0.3979,122100.0,122090.0,3.19146454]
[1759983069124,0.4009,122100.0,122090.0,0.40082454]
[1759983069323,0.4009,122100.0,122090.0,3.19138454]
[1759983069521,0.4827836,122100.0,122090.0,0.40082454]
[1759983069725,0.03599,122080.0,122070.0,0.081903]
[1759983069922,0.03599,122080.0,122070.0,3.19159724]
[1759983071326,0.03599,122080.0,122070.0,0.40083724]
[1759983071520,0.03599,122080.0,122070.0,2.872703]
[1759983071715,0.03599,122080.0,122070.0,3.19163724]
[1759983072321,0.03699,122080.0,122070.0,3.19163724]
[1759983075622,0.39779,122080.0,122070.0,0.081903]
[1759983075822,0.8796871,122080.0,122070.0,2.1278238]
[1759983076017,0.8796871,122080.0,122070.0,2.8726638]
[1759983076825,0.8796871,122080.0,122070.0,3.19159804]
[1759983078825,0.8979443,122080.0,122070.0,3.19159804]
[1759983081942,0.8979443,122080.0,122070.0,2.8726638]
[1759983082243,0.8979443,122080.0,122070.0,3.19159804]
[1759983082844,0.8979443,122080.0,122070.0,2.8726638]
[1759983083143,0.8979443,122080.0,122070.0,3.19159804]
[1759983085540,0.3927472,122080.0,122070.0,3.19159804]
[1759983085740,1e-07,122080.0,122070.0,3.52649228]
[1759983085946,0.0138,122100.0,122090.0,0.0818903]
[1759983086144,0.0138,122100.0,122090.0,1.14714454]
[1759983087046,0.0138,122100.0,122090.0,0.40082454]
[1759983087345,0.0168,122100.0,122090.0,1.50790454]
[1759983089046,0.0168,122100.0,122090.0,0.76162454]
[1759983089242,0.0168,122100.0,122090.0,1.50770454]
[1759983089546,0.0168,122100.0,122090.0,1.14690454]
[1759983090045,0.04469689,122130.0,122120.0,0.2355199]
[1759983090245,0.04469689,122130.0,122120.0,0.9815599]
[1759983090548,0.04469689,122130.0,122120.0,1.3423599]
[1759983091047,0.12656039,122130.0,122120.0,1.3423599]
[1759983091246,0.13356039,122130.0,122120.0,1.3433599]
[1759983095853,0.13356039,122130.0,122120.0,0.5154497]
[1759983096149,0.13356039,122130.0,122120.0,1.2610097]
[1759983097749,0.1517121,122130.0,122120.0,1.2610097]
[1759983099551,0.1517121,122130.0,122120.0,1.2608097]
[1759983101846,0.1517121,122130.0,122120.0,0.5154497]
[1759983102049,0.1517121,122130.0,122120.0,1.2606097]
[1759983102654,0.1517121,122130.0,122120.0,1.57954394]
[1759983103058,0.1517121,122130.0,122120.0,1.3424799]
[1759983105657,0.1517121,122130.0,122120.0,1.66141414]
[1759983107858,0.39088578,122130.0,122120.0,1.58165358]
[1759983109858,0.39088578,122130.0,122120.0,1.49978338]
[1759983110056,0.39088578,122130.0,122120.0,1.58165358]
[1759983111253,0.1517121,122130.0,122120.0,1.58165358]
[1759983111460,0.0698486,122130.0,122120.0,1.8015816]
[1759983111654,0.1517121,122130.0,122120.0,1.8015816]
[1759983111856,0.14300521,122130.0,122120.0,1.8015816]
[1759983112263,0.14300521,122130.0,122120.0,1.0570216]
[1759983112456,0.14300521,122130.0,122120.0,3.1026616]
[1759983112663,0.14300521,122130.0,122120.0,3.8472216]
[1759983115866,0.14300521,122130.0,122120.0,1.0570216]
[1759983116059,0.14300521,122130.0,122120.0,3.8469416]
[1759983116260,0.14300521,122130.0,122120.0,1.0570216]
[1759983116461,0.14300521,122130.0,122120.0,3.8469416]
[1759983116660,0.14300521,122130.0,122120.0,1.0570216]
[1759983116861,0.14300521,122130.0,122120.0,3.8469016]
[1759983118763,0.14300521,122130.0,122120.0,3.8468616]
[1759983120666,0.14300521,122130.0,122120.0,1.0570216]
[1759983120862,0.14300521,122130.0,122120.0,3.8467016]
[1759983122063,0.02515171,122130.0,122120.0,3.8467016]
[1759983122260,0.02515171,122130.0,122120.0,1.69619528]
[1759983122460,0.03900171,122130.0,122120.0,3.8465016]
[1759983122661,0.03900171,122130.0,122120.0,1.0570216]
[1759983122968,0.03900171,122130.0,122120.0,3.8465016]
[1759983123367,0.03800171,122130.0,122120.0,3.8455016]
[1759983123569,0.03415,122160.0,122150.0,0.0818501]
[1759983123869,0.1159934,122160.0,122150.0,1.76950452]
[1759983124076,0.03415,122160.0,122150.0,1.76950452]
[1759983124370,0.1159934,122160.0,122150.0,1.76950452]
[1759983125264,0.1159934,122160.0,122150.0,1.02398452]
[1759983125463,0.1159934,122160.0,122150.0,3.81490452]
[1759983126064,0.1189934,122160.0,122150.0,3.81490452]
[1759983126663,0.1189934,122160.0,122150.0,0.7216]
[1759983126664,0.36661669,122160.0,122150.0,0.7216]
[1759983126864,1.00579037,122160.0,122150.0,0.3608]
[1759983127262,0.76661669,122160.0,122150.0,1.1062]
[1759983127463,0.76661669,122160.0,122150.0,0.59997368]
[1759983127662,0.76661669,122160.0,122150.0,1.34533368]
[1759983127868,0.52744301,122160.0,122150.0,1.42718378]
[1759983128064,0.74515669,122160.0,122150.0,1.42718378]
[1759983128267,0.01569,122160.0,122150.0,1.28179746]
[1759983128570,0.0975334,122160.0,122150.0,1.78886378]
[1759983130869,0.0975334,122160.0,122150.0,1.78874378]
[1759983132565,0.1189934,122160.0,122150.0,0.8034501]
[1759983132870,0.1189934,122160.0,122150.0,3.83366378]
[1759983135573,0.13694684,122160.0,122150.0,3.83366378]
[1759983135969,0.13694684,122160.0,122150.0,1.04262378]
[1759983136269,0.13694684,122160.0,122150.0,3.83338378]
[1759983136670,0.13694684,122160.0,122150.0,1.04262378]
[1759983136872,0.13694684,122160.0,122150.0,3.83334378]
[1759983137666,0.13694684,122160.0,122150.0,0.7216]
[1759983137867,0.37612052,122160.0,122150.0,0.96077368]
[1759983138069,0.37612052,122160.0,122150.0,1.70629368]
[1759983138268,0.13694684,122160.0,122150.0,1.78814378]
[1759983138970,0.13694684,122160.0,122150.0,1.70629368]
[1759983139270,0.37612052,122160.0,122150.0,1.70629368]
[1759983141169,0.13694684,122160.0,122150.0,1.70629368]
[1759983142376,0.13694684,122160.0,122150.0,1.70605368]
[1759983143068,0.13694684,122160.0,122150.0,1.34525368]
[1759983143877,0.13694684,122160.0,122150.0,1.326614]
[1759983144772,1.0152942,122160.0,122150.0,0.3608]
[1759983145376,0.1167101,122150.0,122140.0,0.3608]
[1759983145676,0.37383722,122150.0,122140.0,1.10616]
[1759983147179,0.37483722,122150.0,122140.0,1.10616]
[1759983148673,0.37483722,122150.0,122140.0,1.34513368]
[1759983150174,0.37483722,122150.0,122140.0,0.59997368]
[1759983150574,0.37483722,122150.0,122140.0,1.34505368]
[1759983151779,0.37483722,122150.0,122140.0,1.32641206]
[1759983152581,0.37483722,122150.0,122140.0,0.58133206]
[1759983152880,0.37483722,122150.0,122140.0,1.32625206]
[1759983153776,0.37483722,122150.0,122140.0,1.32621206]
[1759983154277,0.37488824,122150.0,122140.0,0.58133206]
[1759983154581,0.37488824,122150.0,122140.0,1.32621206]
[1759983156187,0.37488824,122150.0,122140.0,1.08703838]
[1759983156376,0.37488824,122150.0,122140.0,1.32621206]
[1759983159788,0.37488824,122150.0,122140.0,1.30757044]
[1759983160384,0.61406192,122150.0,122140.0,0.32351676]
[1759983160687,0.1168768,122140.0,122130.0,0.3608]
[1759983160888,0.61322862,122140.0,122130.0,0.3608]
[1759983161090,1.05322862,122140.0,122130.0,0.74496]
[1759983163593,0.61322862,122140.0,122130.0,0.74496]
[1759983164886,0.0818635,122130.0,122120.0,2.78009772]
[1759983165092,0.11325796,122130.0,122120.0,3.8459016]
[1759983165393,0.11325796,122130.0,122120.0,3.52485772]
[1759983166485,0.11325796,122130.0,122120.0,3.52585772]
[1759983166781,0.35243164,122130.0,122120.0,3.52585772]
[1759983167495,0.36079418,122130.0,122120.0,3.52585772]
[1759983167792,0.36079418,122130.0,122120.0,3.50721346]
[1759983167994,0.36079418,122130.0,122120.0,3.50709346]
[1759983169486,0.36079418,122130.0,122120.0,3.26791978]
[1759983169690,0.36079418,122130.0,122120.0,3.50709346]
[1759983169891,0.1216205,122130.0,122120.0,3.26791978]
[1759983177601,0.1216205,122130.0,122120.0,2.52327978]
[1759983177900,0.1216205,122130.0,122120.0,3.34926998]
[1759983178796,0.1216205,122130.0,122120.0,3.66817437]
[1759983179899,0.1216205,122130.0,122120.0,2.92405437]
[1759983180301,0.1216205,122130.0,122120.0,3.66805437]
[1759983182300,0.1216205,122130.0,122120.0,3.58618417]
[1759983182500,0.1216205,122130.0,122120.0,3.58606417]
[1759983182700,0.1216205,122130.0,122120.0,3.26715978]
[1759983183401,0.46319489,122130.0,122120.0,0.47815978]
[1759983183699,0.46319489,122130.0,122120.0,1.22203978]
[1759983185000,0.46319489,122130.0,122120.0,1.22195978]
[1759983185198,0.1442905,122130.0,122120.0,1.22195978]
[1759983186896,0.1442905,122130.0,122120.0,1.22179978]
[1759983187301,0.1442905,122130.0,122120.0,0.47815978]
[1759983187501,0.1442905,122130.0,122120.0,1.22179978]
[1759983188101,0.46319489,122130.0,122120.0,1.22179978]
[1759983188697,0.46319489,122130.0,122120.0,0.47815978]
[1759983189203,0.46319489,122130.0,122120.0,1.22171978]
[1759983189601,0.1442905,122130.0,122120.0,1.22171978]
[1759983190001,0.1442905,122130.0,122120.0,0.47815978]
[1759983190402,0.1442905,122130.0,122120.0,1.20299503]
[1759983195003,0.1442905,122130.0,122120.0,0.45951503]
[1759983195404,0.1442905,122130.0,122120.0,1.20275503]
[1759983196301,0.1442905,122130.0,122120.0,0.45951503]
[1759983196502,0.1442905,122130.0,122120.0,1.20275503]
[1759983196804,0.1442905,122130.0,122120.0,1.20271503]
[1759983198309,0.1442905,122130.0,122120.0,0.45951503]
[1759983198501,0.1442905,122130.0,122120.0,1.18403028]
[1759983199602,0.1442905,122130.0,122120.0,0.44087028]
[1759983199808,0.1442905,122130.0,122120.0,1.18391028]
[1759983200011,0.46319489,122130.0,122120.0,1.18391028]
[1759983200310,0.1442905,122130.0,122120.0,1.18391028]
[1759983203412,0.46319489,122130.0,122120.0,1.18391028]
[1759983205011,0.46319489,122130.0,122120.0,0.44087028]
[1759983205209,0.46319489,122130.0,122120.0,0.08007028]
[1759983205210,0.86319489,122130.0,122120.0,0.08007028]
[1759983205409,1.2829339,122130.0,122120.0,0.08007028]
[1759983205608,1.2829339,122130.0,122120.0,0.06039937]
[1759983205808,1.2829339,122130.0,122120.0,0.59699937]
[1759983205809,1.22399489,122130.0,122120.0,0.59699937]
[1759983206009,1.22399489,122130.0,122120.0,0.06039937]
[1759983206205,1.28296366,122130.0,122120.0,0.06039937]
[1759983206414,1.28296366,122130.0,122120.0,0.78463267]
[1759983207508,1.28296366,122130.0,122120.0,0.04175267]
[1759983207715,1.28296366,122130.0,122120.0,0.78463267]
[1759983208916,1.22399489,122130.0,122120.0,0.78463267]
[1759983214318,1.22399489,122130.0,122120.0,0.78443267]
[1759983214520,1.22399489,122130.0,122120.0,0.76578594]
[1759983216628,1.22399489,122130.0,122120.0,0.76566594]
[1759983217226,1.22399489,122130.0,122120.0,0.74599466]
[1759983217822,1.22399489,122130.0,122120.0,0.74587466]
[1759983218726,1.22399489,122130.0,122120.0,0.00343466]
[1759983219026,0.1442905,122130.0,122120.0,0.32233905]
[1759983219224,0.1442905,122130.0,122120.0,0.74587466]
[1759983221732,0.1442905,122130.0,122120.0,0.00343466]
[1759983221925,0.1442905,122130.0,122120.0,0.74579466]
[1759983222730,0.1442905,122130.0,122120.0,0.72714879]
[1759983223529,0.01301,122110.0,122100.0,0.3608]
[1759983223733,0.45349575,122110.0,122100.0,0.3608]
[1759983223929,0.45349575,122110.0,122100.0,1.10368]
[1759983224734,0.45349575,122110.0,122100.0,0.3608]
[1759983224931,0.45349575,122110.0,122100.0,1.10364]
[1759983225432,0.45549575,122110.0,122100.0,1.10364]
[1759983225934,0.45549575,122110.0,122100.0,0.3608]
[1759983226235,0.45549575,122110.0,122100.0,1.10356]
[1759983228338,0.52095804,122110.0,122100.0,1.10356]
[1759983230038,0.52095804,122110.0,122100.0,1.10352]
[1759983230439,0.20205365,122110.0,122100.0,1.10352]
[1759983230645,0.52095804,122110.0,122100.0,1.10352]
[1759983231439,0.52095804,122110.0,122100.0,1.10344]
[1759983231839,0.44134532,122110.0,122100.0,1.10344]
[1759983232240,0.44134532,122110.0,122100.0,0.3608]
[1759983232441,0.44134532,122110.0,122100.0,1.10332]
[1759983242553,0.44134532,122110.0,122100.0,1.08467237]
[1759983243059,0.44134532,122110.0,122100.0,0.74252]
[1759983243255,0.1156854,122100.0,122090.0,0.3608]
[1759983243454,0.6122732,122100.0,122090.0,0.3608]
[1759983243854,0.6122732,122100.0,122090.0,1.10292]
[1759983244559,0.6162732,122100.0,122090.0,1.10292]
[1759983246559,0.6162732,122100.0,122090.0,0.4426903]
[1759983246862,0.6162732,122100.0,122090.0,1.1848103]
[1759983247162,0.6162732,122100.0,122090.0,1.10292]
[1759983247463,0.6162732,122100.0,122090.0,0.3608]
[1759983247664,0.6162732,122100.0,122090.0,1.10284]
[1759983250458,0.6162732,122100.0,122090.0,1.1847303]
[1759983258469,0.6162732,122100.0,122090.0,1.32127364]
[1759983258470,0.02200446,122100.0,122090.0,1.32127364]
[1759983258676,0.02200446,122100.0,122090.0,2.42395364]
[1759983259269,0.004,122100.0,122090.0,2.42395364]
[1759983261276,0.004,122100.0,122090.0,4.46983364]
[1759983265776,0.004,122100.0,122090.0,3.9912503]
[1759983265977,0.004,122100.0,122090.0,4.46983364]
[1759983266477,0.004,122100.0,122090.0,3.9912503]
[1759983266778,0.004,122100.0,122090.0,4.46983364]
[1759983275481,0.004,122100.0,122090.0,3.9912503]
[1759983275681,0.004,122100.0,122090.0,4.46983364]
[1759983277378,0.0992336,122100.0,122090.0,3.9908103]
[1759983277584,0.0992336,122100.0,122090.0,3.72775364]
[1759983277884,0.01735,122100.0,122090.0,4.46939364]
[1759983280285,0.004,122100.0,122090.0,4.46939364]
[1759983280482,1.23890861,122100.0,122090.0,0.3608]
[1759983280676,0.1170414,122090.0,122080.0,0.3608]
[1759983280881,0.1170471,122080.0,122070.0,0.3608]
[1759983281087,0.3753588,122080.0,122070.0,1.1028]
[1759983281683,0.61465047,122080.0,122070.0,1.1028]
[1759983281884,1.02302275,122080.0,122070.0,1.1028]
[1759983282086,0.78373108,122080.0,122070.0,1.1028]
[1759983282281,0.38373108,122080.0,122070.0,1.1028]
[1759983282684,0.62302275,122080.0,122070.0,1.1048]
[1759983282885,0.62302275,122080.0,122070.0,0.3628]
[1759983283080,0.62302275,122080.0,122070.0,1.10476]
[1759983283285,0.62302275,122080.0,122070.0,1.10576]
[1759983285789,0.62302275,122080.0,122070.0,0.3638]
[1759983285989,1.02302275,122080.0,122070.0,0.74492]
[1759983286188,1.38382275,122080.0,122070.0,0.74492]
[1759983288493,1.62311442,122080.0,122070.0,0.003]
[1759983288693,1.62311442,122080.0,122070.0,0.74524]
[1759983290691,1.62311442,122080.0,122070.0,0.72658644]
[1759983291190,0.1167638,122070.0,122060.0,0.3608]
[1759983291395,0.61436717,122070.0,122060.0,1.103]
[1759983292102,1.20589691,122070.0,122060.0,0.7422]
[1759983292300,0.1167839,122040.0,122030.0,0.4427304]
[1759983292598,0.45511701,122040.0,122030.0,1.1849704]
[1759983292792,0.13580393,122040.0,122030.0,1.1849704]
[1759983292993,0.13580393,122040.0,122030.0,0.3608]
[1759983292994,0.45511701,122040.0,122030.0,0.3608]
[1759983293191,0.45511701,122040.0,122030.0,1.10304]
[1759983293396,0.45511701,122040.0,122030.0,0.3718]
[1759983293597,0.45511701,122040.0,122030.0,1.11408]
[1759983293997,0.45511701,122040.0,122030.0,1.10808]
[1759983294193,0.13580393,122040.0,122030.0,1.10808]
[1759983294395,0.45511701,122040.0,122030.0,1.10808]
[1759983294601,0.13580393,122040.0,122030.0,0.3658]
[1759983294799,0.45511701,122040.0,122030.0,1.11108]
[1759983295098,0.45511701,122040.0,122030.0,1.11136]
[1759983296501,0.42311701,122040.0,122030.0,1.11136]
[1759983296796,0.43669701,122040.0,122030.0,1.11136]
[1759983296989,0.43669701,122040.0,122030.0,1.10436]
[1759983298501,0.11738393,122040.0,122030.0,1.10436]
[1759983298801,0.44515094,122040.0,122030.0,1.10436]
[1759983300500,0.12583786,122040.0,122030.0,1.10436]
[1759983300699,0.44515094,122040.0,122030.0,1.11392]
[1759983301295,0.44515094,122040.0,122030.0,0.37144]
[1759983301491,0.13580393,122040.0,122030.0,0.4533706]
[1759983301795,0.13580393,122040.0,122030.0,1.51516368]
[1759983302197,0.13580393,122040.0,122030.0,1.11392]
[1759983304504,0.13580393,122040.0,122030.0,0.37144]
[1759983304705,0.13580393,122040.0,122030.0,1.1142]
[1759983304906,0.13580393,122040.0,122030.0,1.1961306]
[1759983307905,0.13580393,122040.0,122030.0,1.1960506]
[1759983308608,0.13580393,122040.0,122030.0,1.1959706]
[1759983309806,0.13580393,122040.0,122030.0,0.4533706]
[1759983310011,0.13580393,122040.0,122030.0,1.1959706]
[1759983310210,0.13580393,122040.0,122030.0,1.1959306]
[1759983310915,0.05440003,122040.0,122030.0,1.51524368]
[1759983311110,0.01902003,122040.0,122030.0,1.17871368]
[1759983311306,0.41480758,122060.0,122050.0,0.0915572]
[1759983311307,0.1176345,122060.0,122050.0,0.0915572]
[1759983311612,0.13717177,122060.0,122050.0,0.7522]
[1759983312115,0.14540548,122060.0,122050.0,0.7522]
[1759983312615,0.14640548,122060.0,122050.0,0.7522]
[1759983312812,0.15040548,122060.0,122050.0,0.7522]
[1759983313210,0.52868733,122060.0,122050.0,0.7522]
[1759983313822,0.20937425,122060.0,122050.0,0.7522]
[1759983314113,0.52900419,122060.0,122050.0,0.7522]
[1759983315713,0.52900419,122060.0,122050.0,0.00964]
[1759983315902,0.52900419,122060.0,122050.0,0.75204]
[1759983317309,0.47003542,122060.0,122050.0,0.75204]
[1759983318214,0.52900419,122060.0,122050.0,0.75204]
[1759983318411,0.52900419,122060.0,122050.0,0.75196]
[1759983319317,0.52900419,122060.0,122050.0,0.00964]
[1759983319518,0.52900419,122060.0,122050.0,0.75192]
[1759983320013,0.02485413,122060.0,122050.0,1.5946372]
[1759983320217,0.11638327,122090.0,122070.0,0.0819038]
[1759983320218,0.01324,122090.0,122070.0,0.0819038]
[1759983320412,0.01324,122090.0,122080.0,1.50673018]
[1759983320716,0.01324,122100.0,122090.0,0.0818903]
[1759983320912,0.01324,122100.0,122090.0,1.50672338]
[1759983321112,0.01324,122100.0,122090.0,1.1874103]
[1759983321311,0.01324,122100.0,122090.0,0.4426903]
[1759983321512,0.01324,122100.0,122090.0,1.1874103]
[1759983321716,0.01324,122100.0,122090.0,0.76200338]
[1759983321919,0.03538,122100.0,122090.0,0.76200338]
[1759983322219,0.03538,122100.0,122090.0,1.50668338]
[1759983322916,0.03838,122100.0,122090.0,1.50668338]
[1759983323120,0.04438,122100.0,122090.0,1.50668338]
[1759983325820,0.04438,122100.0,122090.0,0.76200338]
[1759983326019,0.04438,122100.0,122090.0,1.50640338]
[1759983326214,0.04438,122100.0,122090.0,0.76200338]
[1759983326421,0.02224,122100.0,122090.0,1.50640338]
[1759983327820,0.02224,122100.0,122090.0,1.16200338]
[1759983328019,0.02224,122100.0,122090.0,1.90628338]
[1759983329111,0.02224,122100.0,122090.0,3.95260338]
[1759983332223,0.04176168,122100.0,122090.0,3.95260338]
[1759983332624,0.04176168,122100.0,122090.0,3.20832338]
[1759983332824,0.04176168,122100.0,122090.0,3.95232338]
[1759983334220,0.02852168,122100.0,122090.0,3.95228338]
[1759983334427,0.009,122100.0,122090.0,3.20832338]
[1759983334827,0.009,122100.0,122090.0,3.95228338]
[1759983335024,0.009,122100.0,122090.0,3.20832338]
[1759983335230,0.009,122100.0,122090.0,3.95232338]
[1759983335828,0.009,122100.0,122090.0,3.20832338]
[1759983336026,0.009,122100.0,122090.0,3.95224338]
[1759983338625,0.009,122100.0,122090.0,3.20832338]
[1759983338830,0.009,122100.0,122090.0,3.95212338]
[1759983339129,0.009,122100.0,122090.0,3.20796338]
[1759983339330,0.02852902,122100.0,122090.0,3.95176338]
[1759983339928,0.02552902,122100.0,122090.0,3.95176338]
[1759983340125,0.01952902,122100.0,122090.0,1.16200338]
[1759983340329,0.01952902,122100.0,122090.0,3.20892338]
[1759983340531,0.01952902,122100.0,122090.0,3.95264338]
[1759983341832,0.01952902,122100.0,122090.0,3.95260338]
[1759983342430,0.01952902,122100.0,122090.0,3.55260338]
[1759983346634,0.01952902,122100.0,122090.0,3.2332903]
[1759983346934,0.01952902,122100.0,122090.0,3.55260338]
[1759983347335,0.01952902,122100.0,122090.0,0.76300338]
[1759983347536,0.11442262,122100.0,122090.0,2.4894103]
[1759983347734,0.11442262,122100.0,122090.0,3.55200338]
[1759983348236,0.13683262,122100.0,122090.0,0.76300338]
[1759983348432,0.13683262,122100.0,122090.0,2.80872338]
[1759983348629,0.13683262,122100.0,122090.0,3.55208338]
[1759983349535,0.13683262,122100.0,122090.0,0.68111308]
[1759983349735,0.13683262,122100.0,122090.0,3.2327303]
[1759983349932,0.13683262,122100.0,122090.0,3.55204338]
[1759983350136,0.13683262,122100.0,122090.0,3.55200338]
[1759983350335,0.53683262,122100.0,122090.0,3.15076]
[1759983350536,0.53683262,122100.0,122090.0,3.2326503]
[1759983351539,0.53655272,122100.0,122090.0,3.2326503]
[1759983351928,0.51414272,122100.0,122090.0,2.80868338]
[1759983352130,0.51414272,122100.0,122090.0,3.55204338]
[1759983352538,0.51414272,122100.0,122090.0,3.2327303]
[1759983352739,0.51414272,122100.0,122090.0,3.55204338]
[1759983353942,0.51414272,122100.0,122090.0,3.47197611]
[1759983354337,0.53655272,122100.0,122090.0,2.4894103]
[1759983354540,0.53655272,122100.0,122090.0,3.2326503]
[1759983354738,0.77579853,122100.0,122090.0,3.47189611]
[1759983355242,0.53655272,122100.0,122090.0,3.47189611]
[1759983359547,0.53655272,122100.0,122090.0,3.45324935]
[1759983359948,0.53655272,122100.0,122090.0,3.45300935]
[1759983360344,0.53655272,122100.0,122090.0,3.43333804]
[1759983361351,0.51414272,122100.0,122090.0,3.43333804]
[1759983361556,0.01924912,122100.0,122090.0,2.92958385]
[1759983361851,0.10113272,122100.0,122090.0,3.67262385]
[1759983362050,0.01924912,122100.0,122090.0,3.67262385]
[1759983364252,0.01924912,122100.0,122090.0,3.32958385]
[1759983364454,0.01924912,122100.0,122090.0,4.07258385]
[1759983365151,0.01924912,122100.0,122090.0,3.32958385]
[1759983365356,0.01924912,122100.0,122090.0,4.07266385]
[1759983365952,0.01924912,122100.0,122090.0,4.31186966]
[1759983366158,0.0951061,122130.0,122110.0,0.081871]
[1759983366351,0.01278,122120.0,122110.0,0.081871]
[1759983366555,0.01278,122120.0,122110.0,2.02504262]
[1759983366757,0.01324,122130.0,122120.0,0.0818702]
[1759983366954,0.01324,122130.0,122120.0,1.66428182]
[1759983367555,0.01624,122130.0,122120.0,1.64563926]
[1759983368159,0.1001035,122130.0,122120.0,1.16714764]
[1759983368359,0.1001035,122130.0,122120.0,1.64563926]
[1759983368657,0.0981035,122130.0,122120.0,1.64563926]
[1759983368958,0.1221135,122130.0,122120.0,1.64559926]
[1759983369160,0.1221135,122130.0,122120.0,1.64555926]
[1759983371356,0.1221135,122130.0,122120.0,0.90251926]
[1759983371655,0.1001035,122130.0,122120.0,1.64547926]
[1759983372860,0.01824,122130.0,122120.0,0.90251926]
[1759983373061,0.01824,122130.0,122120.0,1.64535926]
[1759983375059,0.1221135,122130.0,122120.0,3.69079926]
[1759983376967,0.1221135,122130.0,122120.0,0.42402764]
[1759983377169,0.1221135,122130.0,122120.0,3.69067926]
[1759983378063,0.1001035,122130.0,122120.0,3.69067926]
[1759983378262,0.1001035,122130.0,122120.0,2.94795926]
[1759983378462,0.1221135,122130.0,122120.0,0.90251926]
[1759983378660,0.1221135,122130.0,122120.0,3.69047926]
[1759983378967,0.14069491,122130.0,122120.0,3.69047926]
[1759983379163,0.14069491,122130.0,122120.0,2.46942764]
[1759983379362,0.1221135,122130.0,122120.0,3.69043926]
[1759983382075,0.1001035,122130.0,122120.0,2.94791926]
[1759983382275,0.1001035,122130.0,122120.0,3.69039926]
[1759983383772,0.1001035,122130.0,122120.0,3.69027926]
[1759983385972,0.1221135,122130.0,122120.0,0.90251926]
[1759983386182,0.14069786,122130.0,122120.0,3.69015926]
[1759983386775,0.11868786,122130.0,122120.0,2.94783926]
[1759983387077,0.11868786,122130.0,122120.0,3.69003926]
[1759983387272,0.14069786,122130.0,122120.0,0.90251926]
[1759983387474,0.14069786,122130.0,122120.0,3.69003926]
[1759983388181,0.11868786,122130.0,122120.0,3.69003926]
[1759983389769,0.14069786,122130.0,122120.0,3.68987926]
[1759983392672,0.14069786,122130.0,122120.0,3.45063345]
[1759983392881,0.14069786,122130.0,122120.0,3.68987926]
[1759983395782,0.11868786,122130.0,122120.0,2.94779926]
[1759983395982,0.11868786,122130.0,122120.0,3.68971926]
[1759983396283,0.11868786,122130.0,122120.0,3.68967926]